bitfinex-derivatives/quotes_ETHF0:USTF0_20250427
["timestamp","ask_amount","ask_price","bid_price","bid_amount"]
[1745746021762,1.6835,1807.7,1807.4,2.75721]
[1745746021763,1.10624,1807.6,1807.4,2.75721]
[1745746021962,1.10624,1807.6,1807.5,2.5304]
[1745746030065,1.10624,1807.6,1807.5,0.8376]
[1745746031769,1.10624,1807.6,1807.5,2.5022]
[1745746041075,1.6892,1807.7,1807.5,2.5022]
[1745746041276,2.79533,1807.7,1807.6,1.6783]
[1745746042074,6.51733,1807.7,1807.6,1.6783]
[1745746043974,5.4112,1807.7,1807.6,2.78449]
[1745746044175,3.2078,1808.1,1807.6,5.6804]
[1745746044481,1.10597,1808.0,1807.8,1.10605]
[1745746044681,1.10597,1808.0,1807.9,3.2464]
[1745746045174,4.82797,1808.0,1807.9,3.2464]
[1745746046373,1.10597,1808.0,1807.9,3.2464]
[1745746047671,2.72437,1808.0,1807.9,3.2464]
[1745746048879,1.10613,1807.7,1807.6,9.1658]
[1745746049080,1.10613,1807.7,1807.6,5.958]
[1745746049281,8.03593,1807.7,1807.6,5.958]
[1745746049882,9.64113,1807.7,1807.6,5.958]
[1745746051081,8.535,1807.7,1807.6,5.958]
[1745746051378,5.3272,1807.7,1807.6,5.958]
[1745746051580,6.43333,1807.7,1807.6,5.958]
[1745746051780,4.82813,1807.7,1807.6,5.958]
[1745746052183,1.10613,1807.7,1807.6,7.5329]
[1745746052874,1.10613,1807.7,1807.6,1.5749]
[1745746053683,1.10612,1807.8,1807.6,1.5749]
[1745746053980,10.4778,1807.9,1807.7,1.6333]
[1745746054182,7.86181,1807.9,1807.8,1.7182]
[1745746055081,4.65401,1807.9,1807.8,1.7182]
[1745746057683,6.35441,1807.9,1807.8,1.7182]
[1745746058190,10.07641,1807.9,1807.8,1.7182]
[1745746058684,1.10607,1807.8,1807.7,1.6333]
[1745746058978,1.10607,1807.8,1807.7,0.8221]
[1745746058979,2.80647,1807.8,1807.7,0.8221]
[1745746059783,3.63837,1807.8,1807.7,0.8221]
[1745746059983,1.10619,1807.6,1807.5,1.7347]
[1745746060283,1.10619,1807.6,1807.5,3.3483]
[1745746060980,0.44226441,1807.6,1807.5,3.3483]
[1745746061188,1.10619,1807.6,1807.5,3.3483]
[1745746080986,0.4422495,1807.6,1807.5,3.3483]
[1745746081193,1.5789,1807.7,1807.5,3.3483]
[1745746081389,1.5789,1807.7,1807.6,1.6318]
[1745746081390,1.10613,1807.7,1807.6,1.6318]
[1745746084487,1.10613,1807.7,1807.5,1.6136]
[1745746084488,1.10619,1807.6,1807.5,1.6136]
[1745746084895,2.77249,1807.6,1807.5,1.6136]
[1745746085094,6.49449,1807.6,1807.5,1.6136]
[1745746086098,2.77249,1807.6,1807.5,1.6136]
[1745746086692,1.10619,1807.6,1807.5,1.6136]
[1745746086892,1.10619,1807.6,1807.5,3.3452]
[1745746087095,4.82819,1807.6,1807.5,3.3452]
[1745746090101,1.10619,1807.6,1807.5,3.3452]
[1745746091000,8.2792,1807.9,1807.5,4.45145]
[1745746091201,1.10613,1807.7,1807.6,1.7144]
[1745746092401,1.10612,1807.8,1807.6,1.7144]
[1745746092601,1.10612,1807.8,1807.6,2.82055]
[1745746092797,1.10612,1807.8,1807.7,1.10613]
[1745746092998,1.10612,1807.8,1807.7,2.82053]
[1745746093403,1.10612,1807.8,1807.7,1.7144]
[1745746095004,2.78402,1807.8,1807.7,1.7144]
[1745746096503,1.10614,1807.7,1807.5,5.92762]
[1745746096706,2.75764,1807.7,1807.5,7.55342]
[1745746097004,2.75764,1807.7,1807.6,1.6258]
[1745746099509,1.10614,1807.7,1807.6,1.6258]
[1745746100104,1.10611,1807.8,1807.7,1.10613]
[1745746100605,1.10607,1807.8,1807.7,1.10613]
[1745746100804,3.548,1807.9,1807.8,1.10607]
[1745746101101,4.65401,1807.9,1807.8,1.10607]
[1745746101703,1.10607,1807.8,1807.7,1.10609]
[1745746102503,3.548,1807.9,1807.7,1.10609]
[1745746102703,1.5925,1808.0,1807.8,3.4041]
[1745746102901,2.69845,1808.0,1807.9,1.685]
[1745746104110,6.42045,1808.0,1807.9,1.685]
[1745746105111,2.69845,1808.0,1807.9,1.685]
[1745746105612,1.10595,1808.0,1807.9,1.685]
[1745746106809,4.31373,1808.1,1807.9,2.79099]
[1745746107410,4.31373,1808.1,1808.0,1.5855]
[1745746110011,1.10593,1808.1,1808.0,1.5855]
[1745746110214,4.82793,1808.1,1808.0,1.5855]
[1745746110412,3.722,1808.1,1808.0,2.69145]
[1745746111209,1.10589,1808.1,1808.0,2.69145]
[1745746111402,1.10586,1808.2,1808.0,2.69145]
[1745746111606,1.1058,1808.3,1808.1,4.34409]
[1745746111911,1.1058,1808.3,1808.2,1.5812]
[1745746112611,5.9478,1808.5,1808.2,1.5812]
[1745746112812,1.10578,1808.3,1808.2,1.5812]
[1745746113718,1.10575,1808.4,1808.2,2.68702]
[1745746113906,1.10575,1808.4,1808.3,1.5812]
[1745746114104,4.82775,1808.4,1808.3,1.5812]
[1745746116211,1.10575,1808.4,1808.3,1.5812]
[1745746116518,4.65269,1808.5,1808.3,2.68694]
[1745746116815,4.65269,1808.5,1808.4,1.6704]
[1745746117014,4.65269,1808.5,1808.4,3.3848]
[1745746117221,1.10569,1808.5,1808.4,3.3848]
[1745746118222,1.10569,1808.5,1808.4,4.4905]
[1745746119417,1.10569,1808.5,1808.4,3.3848]
[1745746122718,1.1057,1808.5,1808.4,3.3848]
[1745746125915,1.10576,1808.3,1808.2,6.7538]
[1745746126121,1.10576,1808.3,1808.0,5.958]
[1745746126122,1.10582,1808.2,1808.1,3.3487]
[1745746126321,2.81432,1808.2,1808.1,3.3487]
[1745746127522,2.81432,1808.2,1808.0,7.06394]
[1745746127718,2.81432,1808.2,1808.0,8.69034]
[1745746127920,2.81679,1808.1,1808.0,7.5844]
[1745746128121,2.81679,1808.1,1808.0,1.6264]
[1745746132726,2.15302997,1808.1,1808.0,1.6264]
[1745746133229,1.10595,1808.0,1807.9,1.6334]
[1745746133420,1.10595,1808.0,1807.9,3.2513]
[1745746134527,1.10595,1808.0,1807.9,2.4115]
[1745746134729,1.10613,1807.7,1807.6,5.958]
[1745746135026,1.10619,1807.6,1807.5,2.4039]
[1745746136129,4.82819,1807.6,1807.5,2.4039]
[1745746138125,1.10619,1807.6,1807.5,2.4039]
[1745746139133,4.82819,1807.6,1807.5,2.4039]
[1745746142028,4.82819,1807.6,1807.5,1.6179]
[1745746142231,13.24131,1807.6,1807.2,0.8383]
[1745746142534,13.24131,1807.6,1807.0,8.3935]
[1745746142535,1.1065,1807.1,1807.0,8.3935]
[1745746142724,1.1065,1807.1,1807.0,2.4355]
[1745746143126,1.1065,1807.1,1807.0,1.5738]
[1745746143433,1.10656,1807.0,1806.9,0.8383]
[1745746143732,1.10656,1807.0,1806.9,2.4121]
[1745746144832,1.10653,1807.1,1806.9,3.51872]
[1745746145033,1.10653,1807.1,1807.0,1.5738]
[1745746145941,1.10656,1807.0,1806.9,4.5603]
[1745746146124,1.10654,1807.1,1806.9,4.5603]
[1745746147436,1.10654,1807.1,1807.0,1.7349]
[1745746147628,1.10648,1807.2,1807.0,1.7349]
[1745746147936,1.1065,1807.1,1807.0,1.7349]
[1745746148237,1.1065,1807.1,1807.0,5.4569]
[1745746148836,1.10648,1807.2,1807.0,6.56345]
[1745746149037,1.10648,1807.2,1807.1,2.4896]
[1745746151537,2.81238,1807.2,1807.1,2.4896]
[1745746151836,1.10648,1807.2,1807.1,2.4896]
[1745746161043,1.10652,1807.1,1806.9,7.7681]
[1745746161245,1.10652,1807.1,1806.9,8.87471]
[1745746161441,1.10652,1807.1,1807.0,1.715]
[1745746161642,1.1065,1807.1,1807.0,1.715]
[1745746161835,1.10648,1807.2,1807.0,2.82155]
[1745746162037,4.65241,1807.3,1807.1,3.6082]
[1745746162237,4.65241,1807.3,1807.2,2.5047]
[1745746163747,1.10641,1807.3,1807.2,2.5047]
[1745746164246,1.10641,1807.3,1807.2,6.2267]
[1745746165249,1.10641,1807.3,1807.2,2.5047]
[1745746165646,1.10635,1807.4,1807.2,3.61114]
[1745746165838,1.10635,1807.4,1807.3,1.6165]
[1745746171143,1.6168,1807.5,1807.3,1.6165]
[1745746171442,1.10636,1807.4,1807.3,1.6165]
[1745746177450,1.10631,1807.4,1807.3,1.6165]
[1745746178150,1.10631,1807.4,1807.3,5.3385]
[1745746178352,1.1063,1807.5,1807.3,6.44487]
[1745746178649,1.1063,1807.5,1807.4,1.7295]
[1745746179147,1.1063,1807.5,1807.4,5.4515]
[1745746180152,1.1063,1807.5,1807.4,1.7295]
[1745746181149,9.52031,1807.6,1807.2,0.7897]
[1745746181346,1.6319,1807.5,1807.3,1.66]
[1745746181751,1.10631,1807.4,1807.3,1.66]
[1745746186050,1.10627,1807.5,1807.3,2.76636]
[1745746186253,1.10627,1807.5,1807.3,6.79476]
[1745746186455,1.10627,1807.5,1807.4,1.6084]
[1745746187155,1.10627,1807.5,1807.4,5.3304]
[1745746191056,2.69037,1807.5,1807.4,5.3304]
[1745746191260,1.5841,1807.5,1807.4,1.6084]
[1745746191459,2.442,1807.5,1807.4,1.6084]
[1745746191662,1.10644,1807.2,1807.1,7.32230659]
[1745746191859,1.1065,1807.1,1807.0,7.32230659]
[1745746192059,1.1065,1807.1,1807.0,8.96810659]
[1745746193160,1.1065,1807.1,1807.0,12.69010659]
[1745746194363,3.546,1807.3,1807.0,12.69010659]
[1745746194658,1.10644,1807.2,1807.1,1.584]
[1745746195350,1.1065,1807.1,1807.0,7.32230659]
[1745746195549,5.1957,1807.3,1806.9,15.89521057]
[1745746195550,1.10656,1807.0,1806.9,3.2716]
[1745746201168,1.723,1807.1,1806.9,3.2716]
[1745746201466,2.8295,1807.1,1807.0,1.6398]
[1745746204073,1.1065,1807.1,1807.0,1.6398]
[1745746207969,1.10647,1807.2,1807.0,2.74636]
[1745746208276,6.7548,1807.5,1807.1,1.6073]
[1745746208570,1.10637,1807.3,1807.2,1.6671]
[1745746209160,1.10637,1807.3,1807.2,5.3891]
[1745746211169,2.4442,1807.4,1807.2,5.3891]
[1745746211362,2.4442,1807.4,1807.3,1.6098]
[1745746211563,1.10631,1807.4,1807.3,1.6098]
[1745746212167,1.10631,1807.4,1807.3,5.3318]
[1745746212972,7.86109,1807.5,1807.3,5.3318]
[1745746213171,7.86109,1807.5,1807.4,1.619]
[1745746213364,4.65329,1807.5,1807.4,1.619]
[1745746215470,4.65325,1807.5,1807.4,1.619]
[1745746215866,1.10625,1807.5,1807.4,1.619]
[1745746217278,1.10625,1807.5,1807.4,5.341]
[1745746218576,1.10656,1807.0,1806.9,7.32230659]
[1745746218773,1.10656,1807.0,1806.9,8.16740659]
[1745746218970,1.10647,1807.2,1806.9,8.16740659]
[1745746219173,1.1065,1807.1,1806.9,11.88940659]
[1745746219374,3.2078,1807.3,1806.9,11.88940659]
[1745746219574,1.10647,1807.2,1807.0,7.32230659]
[1745746220477,3.2078,1807.3,1807.1,2.4787]
[1745746220672,4.31417,1807.3,1807.2,2.4284]
[1745746221265,3.6501271,1807.3,1807.2,2.4284]
[1745746224186,3.6501271,1807.3,1807.2,6.1504]
[1745746224979,3.6501271,1807.3,1807.2,3.722]
[1745746225179,1.10644,1807.2,1807.1,0.8674]
[1745746225386,3.56484,1807.2,1807.1,0.8674]
[1745746225585,3.56484,1807.2,1807.1,2.5418]
[1745746226987,2.71794,1807.2,1807.1,2.5418]
[1745746230987,1.10644,1807.2,1807.1,2.5418]
[1745746231181,4.0547,1807.3,1807.1,2.5418]
[1745746231380,5.645,1807.3,1807.2,1.6295]
[1745746231886,6.75137,1807.3,1807.2,1.6295]
[1745746238495,4.31417,1807.3,1807.2,1.6295]
[1745746238690,5.98517,1807.3,1807.2,1.6295]
[1745746239995,2.77737,1807.3,1807.2,1.6295]
[1745746240297,5.98517,1807.3,1807.2,1.6295]
[1745746240992,1.10644,1807.2,1807.1,0.8674]
[1745746241196,1.6433,1807.2,1807.1,0.8674]
[1745746241396,2.74974,1807.2,1807.1,0.8674]
[1745746243096,1.10644,1807.2,1807.1,0.8674]
[1745746250501,7.81592,1807.5,1807.1,0.8674]
[1745746250502,6.7538,1807.5,1807.1,4.0752]
[1745746250703,1.10631,1807.4,1807.2,2.4432]
[1745746250898,1.10631,1807.4,1807.3,1.5897]
[1745746251404,4.31409,1807.5,1807.3,1.5897]
[1745746251597,4.31409,1807.5,1807.4,0.8161]
[1745746253808,1.10629,1807.5,1807.4,0.8161]
[1745746261716,4.31403,1807.6,1807.4,0.8161]
[1745746262011,4.65214,1807.7,1807.5,2.84085]
[1745746262218,4.65214,1807.7,1807.6,2.5907]
[1745746262605,1.10611,1807.8,1807.6,2.5907]
[1745746262805,1.10603,1807.9,1807.7,2.5764]
[1745746263009,1.10603,1807.9,1807.8,1.7346]
[1745746263417,3.2078,1808.4,1807.9,1.10598]
[1745746263617,1.10587,1808.2,1808.0,6.6403]
[1745746263805,3.2078,1808.4,1808.1,1.7346]
[1745746264209,1.10587,1808.2,1808.1,1.7346]
[1745746265420,3.2078,1808.4,1808.1,1.7346]
[1745746265716,1.10578,1808.3,1808.1,1.7346]
[1745746266511,3.2078,1808.4,1808.1,1.7346]
[1745746266718,1.10577,1808.3,1808.1,1.7346]
[1745746267322,1.10582,1808.2,1808.1,1.7346]
[1745746273241,2.8361,1808.3,1808.1,1.7346]
[1745746273441,1.1058,1808.3,1808.1,1.7346]
[1745746273643,1.1058,1808.3,1808.1,2.84048]
[1745746273841,1.1058,1808.3,1808.2,1.5656]
[1745746274543,4.31351,1808.4,1808.2,1.5656]
[1745746274738,3.545,1808.5,1808.2,4.7734]
[1745746274940,1.10562,1808.6,1808.4,1.1057]
[1745746275246,1.10562,1808.6,1808.5,0.848]
[1745746275539,1.10562,1808.6,1808.5,2.4136]
[1745746275747,1.10556,1808.7,1808.5,2.4136]
[1745746275935,1.10556,1808.7,1808.6,2.4176]
[1745746278845,9.5844,1808.8,1808.6,2.4176]
[1745746279040,9.5844,1808.8,1808.7,1.6698]
[1745746279242,7.8573,1808.8,1808.7,1.6698]
[1745746282146,4.6495,1808.8,1808.7,1.6698]
[1745746283341,7.8573,1808.8,1808.7,1.6698]
[1745746287653,1.10558,1808.6,1808.5,0.848]
[1745746287852,1.10558,1808.6,1808.5,2.5336]
[1745746289857,2.70628,1808.6,1808.5,2.5336]
[1745746290855,2.70628,1808.6,1808.5,1.6856]
[1745746291053,1.10564,1808.5,1808.4,3.2078]
[1745746291263,1.6007,1808.5,1808.2,3.2078]
[1745746291555,1.10589,1808.1,1808.0,5.958]
[1745746291759,1.10596,1808.0,1807.9,1.6647]
[1745746312373,3.2078,1808.1,1807.9,1.6647]
[1745746312575,4.31369,1808.1,1808.0,0.7965]
[1745746312771,4.31369,1808.1,1808.0,1.6553]
[1745746314175,8.03569,1808.1,1808.0,1.6553]
[1745746315277,4.31369,1808.1,1808.0,1.6553]
[1745746315670,1.10595,1808.0,1807.9,1.6647]
[1745746315870,1.10607,1807.8,1807.7,6.8145]
[1745746316071,1.10619,1807.6,1807.5,0.8095]
[1745746316278,1.10619,1807.6,1807.5,3.2677]
[1745746323576,1.10618,1807.7,1807.5,3.2677]
[1745746323773,1.10618,1807.7,1807.6,1.7277]
[1745746324785,3.2078,1807.8,1807.6,1.7277]
[1745746324976,4.31392,1807.8,1807.6,1.7277]
[1745746325782,1.10613,1807.7,1807.6,1.7277]
[1745746325983,3.2078,1807.8,1807.6,1.7277]
[1745746326687,1.10613,1807.7,1807.6,1.7277]
[1745746334488,1.10612,1807.8,1807.6,2.83388]
[1745746334682,1.10612,1807.8,1807.7,1.5819]
[1745746335991,6.7518,1807.9,1807.7,1.5819]
[1745746336293,6.7518,1807.9,1807.8,1.6715]
[1745746336595,7.85781,1807.9,1807.8,1.6715]
[1745746336988,4.65001,1807.9,1807.8,1.6715]
[1745746337195,7.85781,1807.9,1807.8,1.6715]
[1745746338594,4.65001,1807.9,1807.8,1.6715]
[1745746338793,7.85781,1807.9,1807.8,1.6715]
[1745746340604,4.65001,1807.9,1807.8,1.6715]
[1745746340802,7.85781,1807.9,1807.8,1.6715]
[1745746341708,6.7518,1807.9,1807.8,1.6715]
[1745746342005,7.85781,1807.9,1807.8,3.3013]
[1745746344609,4.65001,1807.9,1807.8,3.3013]
[1745746346096,3.98611259,1807.9,1807.8,3.3013]
[1745746347011,3.98611259,1807.9,1807.8,2.4341]
[1745746347315,5.61701259,1807.9,1807.8,2.4341]
[1745746347514,6.48221259,1807.9,1807.8,2.4341]
[1745746351513,5.61701259,1807.9,1807.8,2.4341]
[1745746352716,3.98611259,1807.9,1807.8,2.4341]
[1745746356014,1.10601,1807.9,1807.8,2.4341]
[1745746358315,1.10601,1807.9,1807.8,6.1561]
[1745746360216,1.10601,1807.9,1807.8,2.4341]
[1745746361114,1.10601,1807.9,1807.8,6.1561]
[1745746363127,1.10601,1807.9,1807.8,2.4341]
[1745746364918,4.31378,1808.0,1807.8,3.54017]
[1745746365117,4.31378,1808.0,1807.9,1.7158]
[1745746366721,1.1059,1808.1,1807.9,2.82181]
[1745746366925,1.1059,1808.1,1808.0,5.789]
[1745746368525,3.543,1808.2,1808.0,5.789]
[1745746368824,4.64882,1808.2,1808.1,2.51]
[1745746369523,1.10582,1808.2,1808.1,2.51]
[1745746371628,1.10581,1808.3,1808.1,3.61586]
[1745746371820,1.10576,1808.3,1808.2,1.6741]
[1745746372222,1.10576,1808.3,1808.2,5.3961]
[1745746374230,1.10576,1808.3,1808.2,1.6741]
[1745746375125,1.10576,1808.3,1808.2,5.3961]
[1745746376334,1.10576,1808.3,1808.2,1.6741]
[1745746378129,1.10576,1808.3,1808.2,5.3961]
[1745746378530,3.2078,1808.4,1808.2,5.3961]
[1745746378729,5.958,1808.4,1808.3,1.5964]
[1745746379732,4.3135,1808.4,1808.3,1.5964]
[1745746382334,5.9132,1808.4,1808.3,1.5964]
[1745746384238,2.7054,1808.4,1808.3,1.5964]
[1745746384440,5.9132,1808.4,1808.3,1.5964]
[1745746386034,2.7054,1808.4,1808.3,1.5964]
[1745746386235,5.9132,1808.4,1808.3,1.5964]
[1745746387333,1.10582,1808.2,1808.1,0.7873]
[1745746387539,1.10601,1807.9,1807.8,13.33741625]
[1745746387743,1.10601,1807.9,1807.8,7.37941625]
[1745746388342,2.83261,1807.9,1807.8,8.95201625]
[1745746388537,1.7266,1807.9,1807.8,8.95201625]
[1745746389036,2.83261,1807.9,1807.8,8.95201625]
[1745746390939,2.83261,1807.9,1807.8,1.5726]
[1745746391140,1.10607,1807.8,1807.7,0.7896]
[1745746391332,1.10605,1807.9,1807.7,0.7896]
[1745746391532,1.10605,1807.9,1807.8,2.471]
[1745746393438,1.10601,1807.9,1807.8,2.471]
[1745746394138,1.10601,1807.9,1807.8,6.193]
[1745746395132,1.10601,1807.9,1807.8,2.471]
[1745746396435,1.10601,1807.9,1807.8,1.6631]
[1745746396634,2.77331,1807.9,1807.8,1.6631]
[1745746396830,2.77331,1807.9,1807.7,0.7896]
[1745746397037,2.77337,1807.8,1807.7,0.7896]
[1745746397540,2.77337,1807.8,1807.7,2.5072]
[1745746399643,1.10607,1807.8,1807.7,2.5072]
[1745746400640,1.10607,1807.8,1807.6,4.0739]
[1745746400641,1.10613,1807.7,1807.6,3.2078]
[1745746400944,1.10619,1807.6,1807.5,6.7935]
[1745746402038,1.10619,1807.6,1807.5,0.8355]
[1745746403042,6.7498,1807.9,1807.5,1.9417]
[1745746403242,1.10612,1807.8,1807.6,1.97228]
[1745746403637,1.10613,1807.7,1807.6,0.8661]
[1745746405343,1.10619,1807.6,1807.5,0.8355]
[1745746405645,1.10619,1807.6,1807.5,1.7016]
[1745746406145,1.10619,1807.6,1807.5,5.4236]
[1745746408043,1.10619,1807.6,1807.5,4.5575]
[1745746408238,1.10619,1807.6,1807.5,0.8355]
[1745746412443,1.7037,1807.7,1807.3,0.8601]
[1745746412643,1.10637,1807.3,1807.2,0.8]
[1745746412839,1.1065,1807.1,1807.0,0.8274]
[1745746413040,1.10656,1807.0,1806.9,2.13551757]
[1745746413244,1.10662,1806.9,1806.8,5.07384137]
[1745746413445,1.10662,1806.9,1806.7,12.47971816]
[1745746413446,1.10668,1806.8,1806.7,12.47971816]
[1745746413646,1.10668,1806.8,1806.7,10.26617816]
[1745746413850,6.10668,1806.8,1806.7,10.26617816]
[1745746414051,4.67468,1806.8,1806.7,10.26617816]
[1745746414350,9.67468,1806.8,1806.7,12.83450816]
[1745746415253,9.67468,1806.8,1806.7,9.11250816]
[1745746415951,4.67468,1806.8,1806.7,9.11250816]
[1745746416152,1.10691,1806.5,1806.3,1.7219]
[1745746417146,1.10693,1806.4,1806.3,5.4439]
[1745746418050,1.10691,1806.5,1806.3,5.4439]
[1745746418253,1.10693,1806.4,1806.3,3.722]
[1745746418747,4.67693,1806.4,1806.3,3.722]
[1745746418952,3.57,1806.4,1806.3,3.722]
[1745746419452,3.57,1806.7,1806.3,8.03679]
[1745746419656,1.10693,1806.4,1806.3,3.722]
[1745746419953,7.88473,1806.4,1806.3,3.722]
[1745746420653,9.53713,1806.4,1806.3,3.722]
[1745746421554,7.88473,1806.4,1806.3,3.722]
[1745746424051,6.7778,1806.4,1806.3,3.722]
[1745746424352,6.7778,1806.4,1806.3,4.82899]
[1745746424551,1.1067,1806.8,1806.5,1.10685]
[1745746424752,1.1067,1806.8,1806.6,6.4927]
[1745746425060,1.1067,1806.8,1806.7,1.6806]
[1745746426070,1.1067,1806.8,1806.7,5.4026]
[1745746426367,1.10666,1806.9,1806.7,5.4026]
[1745746426568,1.10666,1806.9,1806.8,1.6723]
[1745746427167,1.10666,1806.9,1806.8,5.3943]
[1745746431467,3.571,1807.0,1806.8,8.6021]
[1745746431673,3.571,1807.0,1806.9,1.6545]
[1745746431973,4.67756,1807.0,1806.9,1.6545]
[1745746432176,4.67756,1807.0,1806.9,5.3765]
[1745746434176,4.67756,1807.0,1806.9,1.6545]
[1745746434878,3.571,1807.0,1806.9,1.6545]
[1745746435176,4.67756,1807.0,1806.9,5.3765]
[1745746436078,4.67756,1807.0,1806.9,1.6545]
[1745746437086,4.67756,1807.0,1806.9,5.3765]
[1745746437379,3.571,1807.0,1806.9,6.48312]
[1745746439580,3.571,1807.0,1806.9,5.3765]
[1745746439780,3.571,1807.0,1806.9,6.1641]
[1745746440382,4.67756,1807.0,1806.9,6.1641]
[1745746440589,1.10656,1807.0,1806.9,6.1641]
[1745746441585,1.10654,1807.1,1806.9,7.2707]
[1745746441786,1.10654,1807.1,1807.0,1.7141]
[1745746442088,1.10654,1807.1,1807.0,6.2841]
[1745746444184,1.10648,1807.2,1807.0,6.2841]
[1745746444385,6.7778,1807.3,1807.1,1.10648]
[1745746444591,3.2078,1807.3,1807.2,0.8505]
[1745746445381,4.31417,1807.3,1807.2,4.5725]
[1745746445691,3.2078,1807.3,1807.2,4.5725]
[1745746447288,4.31417,1807.3,1807.2,4.5725]
[1745746448092,4.31417,1807.3,1807.2,0.8505]
[1745746448291,4.69936,1807.4,1807.2,0.8505]
[1745746448890,3.2078,1807.5,1807.2,0.8505]
[1745746449100,1.10617,1807.7,1807.3,3.2078]
[1745746449289,3.593,1807.8,1807.5,4.31403]
[1745746449595,3.593,1807.8,1807.6,1.90779]
[1745746449790,3.2078,1808.0,1807.7,1.10611]
[1745746449791,4.31379,1808.0,1807.7,1.10611]
[1745746450096,3.593,1808.1,1807.9,1.10601]
[1745746450290,3.593,1808.1,1808.0,0.8016]
[1745746450490,3.593,1808.1,1808.0,1.90755]
[1745746450686,9.11803343,1808.3,1808.1,1.10587]
[1745746450898,10.22383343,1808.3,1808.1,3.2078]
[1745746451092,1.10582,1808.2,1808.1,3.2078]
[1745746451394,1.1058,1808.3,1808.1,3.2078]
[1745746451695,4.69774,1808.4,1808.1,3.2078]
[1745746451884,1.10577,1808.3,1808.1,3.2078]
[1745746452290,1.1058,1808.3,1808.1,3.2078]
[1745746452485,4.69775,1808.4,1808.1,3.2078]
[1745746452792,4.69775,1808.4,1808.1,4.31366]
[1745746452793,3.592,1808.4,1808.1,4.31366]
[1745746452993,4.69772,1808.4,1808.1,4.31366]
[1745746453393,3.592,1808.4,1808.1,4.31366]
[1745746453594,4.69773,1808.4,1808.1,4.31366]
[1745746455796,4.69774,1808.4,1808.1,4.31366]
[1745746455988,3.592,1808.4,1808.1,4.31366]
[1745746456193,1.10579,1808.3,1808.1,4.31366]
[1745746456393,4.69774,1808.4,1808.1,4.31366]
[1745746456695,4.69774,1808.4,1808.2,0.8426]
[1745746457602,4.69774,1808.4,1808.2,1.94842]
[1745746457896,3.592,1808.4,1808.2,1.94842]
[1745746458099,3.592,1808.4,1808.3,4.31356]
[1745746458297,0.7936,1808.7,1808.4,1.10568]
[1745746458298,1.10563,1808.6,1808.4,1.10568]
[1745746458495,4.69654,1808.7,1808.5,4.31343]
[1745746458695,3.591,1808.7,1808.6,0.8426]
[1745746459002,3.2078,1808.9,1808.6,1.94818]
[1745746459003,1.10548,1808.8,1808.6,1.94818]
[1745746459210,1.10552,1808.7,1808.6,0.8426]
[1745746460206,1.10549,1808.8,1808.6,0.8426]
[1745746460806,1.10552,1808.7,1808.6,0.8426]
[1745746461107,1.1055,1808.8,1808.6,0.8426]
[1745746462408,1.10552,1808.7,1808.6,0.8426]
[1745746463909,2.73278,1808.8,1808.6,0.8426]
[1745746464110,1.10548,1808.8,1808.6,0.8426]
[1745746464608,1.10548,1808.8,1808.7,1.5629]
[1745746465118,1.10542,1808.9,1808.7,4.7707]
[1745746465609,1.10542,1808.9,1808.8,1.6058]
[1745746466507,2.79532,1808.9,1808.8,1.6058]
[1745746468312,1.10546,1808.8,1808.7,3.2078]
[1745746468613,3.57066,1808.8,1808.7,3.2078]
[1745746475420,2.76706,1808.8,1808.7,3.2078]
[1745746476617,1.10546,1808.8,1808.7,3.2078]
[1745746477016,1.10557,1808.7,1808.5,1.6132]
[1745746477210,1.10557,1808.7,1808.6,3.2078]
[1745746480719,1.10558,1808.6,1808.5,1.6132]
[1745746481017,1.10558,1808.6,1808.5,4.821]
[1745746490115,1.10558,1808.6,1808.5,8.543]
[1745746490826,2.76352,1808.9,1808.5,9.64864]
[1745746491027,1.10552,1808.7,1808.6,1.6052]
[1745746491928,1.10552,1808.7,1808.6,4.813]
[1745746492622,1.10552,1808.7,1808.6,1.6052]
[1745746492823,1.10564,1808.5,1808.4,4.8304]
[1745746493033,1.10576,1808.3,1808.2,3.2078]
[1745746493627,4.69273,1808.4,1808.2,3.2078]
[1745746493927,3.587,1808.4,1808.3,3.2414]
[1745746494234,4.6927,1808.4,1808.3,3.2414]
[1745746494531,3.587,1808.4,1808.3,3.2414]
[1745746495434,4.6927,1808.4,1808.3,3.2414]
[1745746496429,3.587,1808.4,1808.3,3.2414]
[1745746496633,6.7948,1808.7,1808.3,3.2414]
[1745746496834,6.7948,1808.7,1808.4,4.8081]
[1745746497136,10.20704638,1808.6,1808.5,1.6003]
[1745746500235,1.10558,1808.6,1808.5,5.3223]
[1745746500830,30.92453324,1809.0,1808.5,6.42789]
[1745746501039,1.10548,1808.8,1808.7,3.2078]
[1745746501234,1.10546,1808.8,1808.7,4.8104]
[1745746502132,1.10546,1808.8,1808.7,8.5324]
[1745746503137,1.10546,1808.8,1808.7,4.8104]
[1745746504736,1.10546,1808.8,1808.7,1.6026]
[1745746504941,1.10546,1808.8,1808.7,4.8104]
[1745746505537,21.82306686,1809.0,1808.7,4.8104]
[1745746505724,1.1054,1808.9,1808.8,1.656]
[1745746506336,2.7191,1808.9,1808.8,1.656]
[1745746507737,1.1054,1808.9,1808.8,1.656]
[1745746512148,1.10546,1808.8,1808.7,3.2078]
[1745746512340,2.80276,1808.8,1808.7,3.2078]